bitfinex-derivatives/quotes_ETHF0:USTF0_20250803
["timestamp","ask_amount","ask_price","bid_price","bid_amount"]
[1754246334448,0.7087,3484.2,3483.9,1.34953]
[1754246334753,1.8046,3483.8,3483.6,0.57408]
[1754246334953,1.8046,3483.7,3483.6,0.57408]
[1754246335256,1.8046,3483.6,3483.5,1.36729]
[1754246335552,1.8046,3483.6,3483.5,1.57279]
[1754246335753,1.8046,3483.6,3483.5,2.08059]
[1754246335949,1.3314,3484.0,3483.9,1.60284]
[1754246336154,1.8046,3484.0,3483.9,1.5065]
[1754246336551,0.5213,3484.0,3483.9,1.8036]
[1754246337456,0.8258,3484.0,3483.9,1.8036]
[1754246338259,1.0295,3484.0,3483.9,1.8036]
[1754246339958,4.5392,3484.5,3484.4,1.5065]
[1754246340158,4.5392,3484.5,3484.4,0.3155]
[1754246340159,1.8046,3484.5,3484.4,0.3155]
[1754246340861,0.3182,3484.5,3484.4,1.8036]
[1754246341061,0.8258,3484.5,3484.4,1.8036]
[1754246341255,1.0295,3484.5,3484.4,1.8036]
[1754246341450,1.3314,3484.5,3484.4,1.8036]
[1754246341655,1.8046,3484.5,3484.4,1.8036]
[1754246343449,1.0295,3484.5,3484.4,1.8036]
[1754246343659,3.56714,3485.0,3484.8,1.2087]
[1754246343859,3.56714,3485.0,3484.8,1.8036]
[1754246344060,4.59664,3485.0,3484.9,1.8036]
[1754246344362,5.37174,3485.0,3484.9,1.8036]
[1754246345058,5.37174,3485.0,3484.9,2.37747]
[1754246345260,3.7291,3485.5,3485.4,2.37739]
[1754246345453,5.0124,3485.5,3485.4,1.8036]
[1754246345658,5.0124,3485.5,3485.4,1.5065]
[1754246346454,5.0124,3485.5,3485.4,1.8036]
[1754246346756,3.2078,3485.5,3485.4,1.8036]
[1754246346957,0.3182,3485.9,3485.8,1.30472]
[1754246347163,0.89049805,3485.9,3485.8,2.37732]
[1754246347360,1.0295,3485.9,3485.8,2.37732]
[1754246347759,0.725,3485.9,3485.8,2.37732]
[1754246347957,0.5213,3485.9,3485.8,2.37732]
[1754246348562,1.0295,3485.9,3485.8,2.37732]
[1754246348869,1.3314,3485.9,3485.8,1.8036]
[1754246349058,1.8046,3485.9,3485.8,1.5065]
[1754246349560,1.8046,3485.9,3485.8,1.8036]
[1754246349862,1.8046,3485.9,3485.5,0.57377]
[1754246350056,0.6227,3485.8,3485.7,0.3155]
[1754246350262,0.7087,3485.8,3485.7,1.2965]
[1754246350666,1.1819,3485.8,3485.7,1.5065]
[1754246350863,1.8046,3485.8,3485.7,1.5065]
[1754246351164,1.8046,3485.8,3485.7,1.2087]
[1754246351568,1.8046,3485.8,3485.7,1.5065]
[1754246351966,1.8046,3485.8,3485.7,1.2087]
[1754246352161,3.2078,3486.2,3485.4,4.78028]
[1754246352162,0.7087,3485.5,3485.4,4.78028]
[1754246352467,1.8046,3485.5,3485.4,4.78028]
[1754246353066,1.8046,3485.5,3485.4,5.28808]
[1754246353266,1.8046,3485.8,3485.7,2.37734]
[1754246353469,0.3045,3486.0,3485.7,2.08024]
[1754246353665,0.8258,3486.0,3485.9,1.8307]
[1754246354065,1.0284,3486.0,3485.9,1.8307]
[1754246354269,1.3352,3486.0,3485.9,1.8307]
[1754246354570,1.811,3486.0,3485.9,1.5208]
[1754246358470,0.5213,3486.0,3485.9,1.5208]
[1754246358675,0.5213,3486.0,3485.9,1.8307]
[1754246360570,0.8209,3486.0,3485.9,1.8307]
[1754246360771,1.0235,3486.0,3485.9,1.8307]
[1754246360972,1.3303,3486.0,3485.9,1.8307]
[1754246361172,1.8061,3486.0,3485.9,1.8307]
[1754246361974,0.3176,3486.5,3485.9,0.7898]
[1754246362170,1.8094,3486.3,3486.2,2.09995]
[1754246362574,1.8094,3486.3,3486.2,1.5263]
[1754246362875,1.8094,3486.3,3486.2,1.0036]
[1754246363074,1.8094,3486.3,3486.2,0.3161]
[1754246364374,1.8094,3486.3,3486.2,1.216]
[1754246364674,1.8094,3486.3,3486.2,1.5263]
[1754246365081,0.3068,3486.4,3486.3,2.09994]
[1754246365385,1.8094,3486.4,3486.3,2.09994]
[1754246365587,1.8094,3486.4,3486.3,1.78964]
[1754246365881,1.8094,3486.4,3486.3,1.57724]
[1754246366378,1.093,3486.2,3486.1,0.57367]
[1754246366573,1.8094,3486.2,3486.1,0.57367]
[1754246367475,0.7164,3485.9,3485.8,3.2078]
[1754246367673,0.7164,3485.9,3485.7,0.57374]
[1754246367982,1.8094,3485.8,3485.7,1.62054]
[1754246368281,1.8094,3485.8,3485.7,2.10004]
[1754246372484,61.032,3486.9,3486.1,2.09996]
[1754246372485,1.8094,3486.2,3486.1,2.09996]
[1754246373182,1.8094,3486.2,3486.1,1.5263]
[1754246373381,1.093,3486.1,3485.9,1.0532]
[1754246373576,1.8094,3486.0,3485.9,1.0532]
[1754246373778,0.7164,3485.8,3485.7,3.78153]
[1754246373976,1.8094,3485.8,3485.7,4.57713]
[1754246374383,1.8094,3485.8,3485.7,4.09763]
[1754246374578,1.8094,3485.8,3485.7,3.2078]
[1754246375881,6.81020397,3486.5,3485.1,2.57155429]
[1754246375882,1.8094,3485.4,3485.3,3.2078]
[1754246376384,1.8094,3485.4,3485.3,3.5239]
[1754246377287,1.8094,3485.4,3485.3,4.7341]
[1754246377693,1.8094,3485.4,3485.3,4.4238]
[1754246378686,1.8094,3485.4,3485.3,4.7341]
[1754246390000,0.2139,3485.7,3485.4,0.4786]
[1754246390199,1.8215,3485.7,3485.6,1.4764]
[1754246390587,1.8215,3485.7,3485.6,1.7983]
[1754246390982,1.102,3486.3,3485.6,0.2952]
[1754246391195,1.8215,3486.3,3486.2,1.7983]
[1754246391987,1.8215,3486.3,3486.2,1.5031]
[1754246393493,1.8215,3486.3,3486.2,1.7983]
[1754246393697,1.8215,3486.3,3486.2,1.5031]
[1754246394289,1.8215,3486.3,3486.1,0.57366]
[1754246394589,1.8215,3486.3,3485.8,3.2078]
[1754246394590,0.7195,3486.0,3485.8,3.2078]
[1754246394793,1.8215,3485.9,3485.8,3.78152]
[1754246395494,1.8215,3485.9,3485.8,4.96272]
[1754246395795,1.8215,3485.9,3485.8,5.28462]
[1754246399599,1.8215,3485.9,3485.8,5.57982]
[1754246400595,1.8215,3485.9,3485.8,5.28462]
[1754246400896,1.8215,3485.9,3485.8,5.57982]
[1754246402801,1.3109,3486.6,3486.5,0.77771]
[1754246403101,0.3025,3486.6,3486.5,5.59858014]
[1754246404900,0.6293,3486.6,3486.5,5.59858014]
[1754246405599,0.8382,3486.6,3486.5,5.59858014]
[1754246405798,21.5135,3486.9,3486.8,1.27616]
[1754246406000,1.0,3487.0,3486.9,1.7983]
[1754246407710,5.0293,3487.7,3487.6,1.022]
[1754246408505,5.0293,3487.7,3487.6,0.7268]
[1754246408803,0.4228,3487.5,3487.4,0.7268]
[1754246409101,1.8215,3487.5,3487.4,0.7268]
[1754246413605,1.8215,3487.5,3487.4,0.7284]
[1754246415099,1.8215,3487.5,3487.2,4.09909]
[1754246415407,1.8347,3487.3,3487.2,4.31369]
[1754246415597,1.8347,3487.3,3487.2,4.52979]
[1754246416407,1.8347,3487.3,3487.2,4.53229]
[1754246416902,1.8347,3487.3,3487.2,4.85289]
[1754246420512,1.8347,3487.3,3487.2,4.53229]
[1754246421505,1.8347,3487.3,3487.2,4.85289]
[1754246421701,3.2078,3487.9,3487.7,0.5734]
[1754246421902,0.4884,3488.4,3487.8,0.3178]
[1754246422110,1.2232,3488.2,3488.1,1.32433]
[1754246422309,1.5311,3488.2,3488.1,1.32433]
[1754246422506,1.8347,3488.2,3488.1,1.32433]
[1754246425522,0.3079,3488.2,3488.1,1.32433]
[1754246425817,0.3079,3488.2,3488.1,1.64493]
[1754246426010,1.1326,3488.2,3488.1,1.64493]
[1754246426211,1.8347,3488.2,3488.1,1.64493]
[1754246430117,1.0095,3488.5,3488.4,0.7904]
[1754246430412,1.5268,3488.5,3488.4,1.3243]
[1754246430613,1.8347,3488.5,3488.4,1.3243]
[1754246431912,1.8347,3488.5,3488.4,1.6449]
[1754246432418,1.8347,3488.5,3488.4,1.3243]
[1754246433616,0.7348,3488.5,3488.0,3.2078]
[1754246433813,1.8347,3488.1,3488.0,3.78116]
[1754246434010,5.05609521,3488.1,3488.0,2.7164]
[1754246436522,5.05609521,3488.1,3488.0,2.225]
[1754246439824,1.8347,3488.1,3488.0,2.225]
[1754246440824,1.0384,3487.2,3487.1,0.5735]
[1754246441125,1.8347,3487.2,3487.1,2.4427]
[1754246442828,1.8347,3487.2,3487.1,1.2324]
[1754246443024,1.8347,3487.2,3487.1,0.8017]
[1754246443726,0.7374,3487.0,3486.9,0.57354]
[1754246443932,1.8363,3487.0,3486.9,0.57354]
[1754246444229,1.8363,3486.9,3486.8,0.57355]
[1754246444531,1.8363,3486.9,3486.7,0.57357]
[1754246444827,1.8363,3486.8,3486.7,0.57357]
[1754246445526,1.8363,3486.8,3486.7,1.38227]
[1754246445728,1.8363,3486.8,3486.7,1.60067]
[1754246445929,1.8363,3486.8,3486.7,1.79807]
[1754246446131,1.8363,3486.8,3486.7,2.10577]
[1754246447024,1.8363,3486.8,3486.7,0.3269]
[1754246447220,0.7374,3486.6,3486.5,3.7531]
[1754246447425,1.8363,3486.6,3486.5,4.74]
[1754246448228,1.8363,3486.6,3486.5,5.0537]
[1754246448432,1.8363,3486.6,3486.5,4.74]
[1754246449538,1.8363,3486.6,3486.5,5.0537]
[1754246450035,0.6326,3486.6,3486.5,5.0537]
[1754246450637,0.3098,3486.6,3486.5,5.0537]
[1754246451437,0.6326,3486.6,3486.5,5.0537]
[1754246452531,0.8369,3486.6,3486.5,5.0537]
[1754246453031,0.5141,3486.7,3486.6,2.09259]
[1754246453228,0.5141,3486.7,3486.6,2.41949]
[1754246455035,1.8363,3486.7,3486.6,1.5322]
[1754246459536,1.8363,3486.7,3486.6,1.2245]
[1754246460435,2.40989,3486.7,3486.5,3.2078]
[1754246460637,0.2043,3485.8,3485.7,6.57148429]
[1754246460833,1.5135,3485.8,3485.7,1.0271]
[1754246461230,1.5135,3485.8,3485.7,1.5322]
[1754246461434,0.3098,3485.8,3485.7,1.8459]
[1754246461838,0.3228,3486.0,3485.8,0.57372]
[1754246462036,0.3098,3486.1,3486.0,1.1032]
[1754246462339,1.37,3486.1,3486.0,1.8459]
[1754246462539,1.8363,3486.1,3486.0,1.5322]
[1754246462936,0.7374,3485.8,3485.7,0.3269]
[1754246463140,1.8363,3485.8,3485.7,0.8087]
[1754246463337,0.7374,3486.4,3486.3,0.7427]
[1754246463540,1.5265,3486.4,3486.3,1.8459]
[1754246463935,1.8363,3486.4,3486.3,1.5322]
[1754246464134,1.8363,3486.4,3486.3,1.2245]
[1754246464357,1.8363,3486.4,3486.3,1.0271]
[1754246464742,1.8363,3486.4,3486.3,1.5322]
[1754246465536,0.7374,3486.2,3486.1,1.0271]
[1754246465742,1.8363,3486.2,3486.1,1.5322]
[1754246466940,0.5141,3486.2,3486.1,1.8459]
[1754246467147,1.37,3486.8,3486.7,0.7427]
[1754246467443,21.5053,3486.8,3486.7,1.5322]
[1754246467743,0.8287,3487.0,3486.9,0.7427]
[1754246467934,0.8287,3487.0,3486.8,1.19495]
[1754246467935,3.2078,3487.2,3487.1,1.0504]
[1754246468245,3.2078,3487.2,3487.1,1.8459]
[1754246468440,3.7219,3487.2,3487.1,1.8459]
[1754246468744,1.0554,3487.2,3487.1,1.8459]
[1754246468942,1.37,3487.2,3487.1,1.8459]
[1754246469141,1.8363,3487.2,3487.1,1.8459]
[1754246470744,0.7326,3487.2,3487.1,1.8459]
[1754246470950,19.9788,3487.4,3487.3,1.8459]
[1754246471448,0.3098,3487.4,3487.3,1.8459]
[1754246471845,0.8369,3487.4,3487.3,1.8459]
[1754246472045,1.0554,3487.4,3487.3,1.8459]
[1754246472342,0.6326,3487.9,3487.6,0.57342]
[1754246472647,1.8363,3487.9,3487.8,1.5322]
[1754246474549,1.8363,3487.9,3487.8,1.8445]
[1754246477147,20.4982,3488.1,3488.0,1.8234]
[1754246477451,24.7137,3488.4,3488.3,1.8234]
[1754246478154,24.7137,3488.4,3488.3,1.5111]
[1754246478452,21.5059,3488.4,3488.3,1.5111]
[1754246479649,21.5059,3488.4,3488.3,1.2022]
[1754246481951,0.4284,3488.0,3487.9,0.2131]
[1754246482155,1.8429,3488.0,3487.9,1.5111]
[1754246483058,0.7441,3487.8,3487.7,3.5181]
[1754246483353,1.8429,3487.8,3487.7,5.0312]
[1754246485654,1.8429,3487.8,3487.7,4.7189]
[1754246486152,1.8429,3487.8,3487.1,3.22139521]
[1754246486153,0.7441,3487.8,3487.3,0.4722]
[1754246486346,1.0431,3487.8,3487.7,0.7825]
[1754246486546,1.5284,3487.8,3487.7,1.5111]
[1754246486852,1.8429,3487.8,3487.7,1.5111]
[1754246487550,1.8429,3487.8,3487.7,1.8234]
[1754246489962,1.8429,3487.8,3487.7,1.5111]
[1754246490454,1.8429,3487.8,3487.7,1.2022]
[1754246490661,1.8429,3487.8,3487.7,1.5111]
[1754246491754,1.8429,3487.8,3487.7,1.8234]
[1754246492257,0.6135,3488.2,3488.0,0.57336]
[1754246492456,0.299,3488.2,3488.1,1.8234]
[1754246493159,0.6135,3488.2,3488.1,1.8234]
[1754246493350,1.0419,3488.2,3488.1,1.8234]
[1754246493556,1.8429,3488.2,3488.1,1.8234]
[1754246495766,1.0419,3488.2,3488.1,1.8234]
[1754246495957,0.299,3488.4,3488.2,0.57332]
[1754246496264,3.2078,3488.9,3488.0,7.00255521]
[1754246496265,1.0419,3488.7,3488.6,1.8234]
[1754246496562,1.3576,3488.7,3488.6,1.8234]
[1754246496766,1.8429,3488.7,3488.6,1.8234]
[1754246497462,0.299,3488.7,3488.6,1.8234]
[1754246497764,0.299,3488.9,3488.8,1.8234]
[1754246497965,1.3576,3489.1,3489.0,1.8234]
[1754246498159,1.8429,3489.1,3489.0,1.8234]
[1754246499867,1.0419,3489.1,3489.0,1.8234]
[1754246500070,1.8429,3489.1,3489.0,1.5111]
[1754246505462,1.8429,3489.1,3489.0,1.2022]
[1754246505673,0.7175,3489.0,3488.9,1.1785]
[1754246505875,0.7175,3489.0,3488.9,1.5041]
[1754246506371,1.825,3489.0,3488.9,1.5041]
[1754246506970,2.39819,3489.0,3488.8,3.2078]
[1754246507165,5.04639521,3488.9,3488.8,3.2078]
[1754246507675,0.57318,3489.1,3488.8,3.721]
[1754246507876,0.7175,3489.0,3488.9,1.5041]
[1754246508475,1.825,3489.0,3488.9,1.5041]
[1754246509981,1.825,3489.0,3488.9,0.7623]
[1754246510182,1.825,3489.0,3488.9,0.3093]
[1754246513081,1.825,3489.0,3488.9,0.7623]
[1754246513377,0.5076,3489.1,3489.0,1.5041]
[1754246513577,1.825,3489.1,3489.0,1.5041]
[1754246513883,0.8545,3489.1,3489.0,1.8211]
[1754246514378,1.0533,3489.1,3489.0,1.8211]
[1754246514579,1.825,3489.1,3489.0,1.8211]
[1754246515370,0.5303,3489.1,3489.0,1.5041]
[1754246515678,0.8545,3489.1,3489.0,1.8211]
[1754246515881,1.3621,3489.1,3489.0,1.8211]
[1754246516080,1.825,3489.1,3489.0,1.8211]
[1754246518284,1.825,3489.1,3489.0,1.5041]
[1754246520485,1.3621,3488.5,3488.3,3.7811]
[1754246520786,1.825,3488.4,3488.3,3.985]
[1754246520985,1.825,3488.4,3488.3,5.1492]
[1754246521179,1.0417,3488.8,3488.7,0.7255]
[1754246521385,0.7175,3488.8,3488.4,0.7786]
[1754246521588,0.57319,3489.0,3488.4,1.5041]
[1754246521784,0.2099,3489.2,3489.1,1.0956]
[1754246521987,3.5282,3489.4,3489.3,1.3681]
[1754246522182,3.7381,3489.4,3489.3,1.3681]
[1754246522486,5.0328,3489.4,3489.3,1.5041]
[1754246523286,5.0328,3489.4,3489.3,1.8211]
[1754246523790,1.825,3489.4,3489.3,1.8211]
[1754246524888,0.3242,3489.3,3488.9,0.5732]
[1754246525187,1.825,3488.9,3488.8,2.07732]
[1754246526484,1.825,3488.9,3488.8,2.39432]
[1754246526485,1.302,3488.9,3488.8,2.39432]
[1754246526690,0.8391,3488.9,3488.8,2.39432]
[1754246527384,1.1633,3488.9,3488.8,2.39432]
[1754246528787,0.3204,3488.9,3488.8,2.39432]
[1754246529695,1.5046,3489.2,3489.1,2.07727]
[1754246530287,1.825,3489.2,3489.1,2.07727]
[1754246530990,1.825,3489.1,3489.0,0.88248]
[1754246531191,1.825,3489.1,3489.0,1.53938]
[1754246531493,1.825,3489.1,3489.0,2.07728]
[1754246533795,1.825,3489.1,3489.0,1.1785]
[1754246534893,1.825,3489.1,3489.0,0.9662]
[1754246535799,1.825,3489.1,3489.0,1.4917]
[1754246536000,1.4538,3489.4,3489.3,0.99844]
[1754246536204,1.75,3489.4,3489.3,1.2117]
[1754246536402,1.75,3489.4,3489.3,0.9975]
[1754246536899,1.75,3489.4,3489.3,0.3008]
[1754246537708,4.2078,3490.0,3489.5,0.57311]
[1754246537894,4.5064,3490.0,3489.9,1.8249]
[1754246538096,4.5064,3490.0,3489.9,1.523]
[1754246538097,6.10317598,3490.0,3489.9,1.523]
[1754246538403,5.9578,3490.0,3489.9,1.523]
[1754246538995,1.75,3489.5,3489.4,2.09611]
[1754246539298,1.75,3489.5,3489.4,2.39801]
[1754246542098,1.75,3489.9,3489.8,2.09601]
[1754246543608,1.75,3489.9,3489.8,2.39791]
[1754246544601,1.0,3490.0,3489.9,1.523]
[1754246544802,1.0,3490.0,3489.9,1.8249]
[1754246544803,1.8123,3490.0,3489.9,1.8249]
[1754246545010,2.009,3490.0,3489.9,1.8249]
[1754246545307,2.75,3490.0,3489.9,1.8249]
[1754246545701,2.75,3490.0,3489.9,0.3008]
[1754246546209,2.75,3490.0,3489.9,1.2117]
[1754246546509,2.75,3490.0,3489.9,1.523]
[1754246546804,2.75,3490.0,3489.3,5.77935429]
[1754246546805,1.75,3489.4,3489.3,5.77935429]
[1754246547009,1.75,3489.4,3489.3,4.99264]
[1754246547304,1.75,3489.4,3489.3,5.30394]
[1754246547901,0.4448,3489.7,3489.6,0.57307]
[1754246548099,1.75,3489.7,3489.6,2.09607]
[1754246548303,1.0,3490.0,3489.9,0.2142]
[1754246548499,1.7114,3490.0,3489.9,1.8249]
[1754246549305,1.0,3490.0,3489.9,1.8249]
[1754246549508,2.75,3490.0,3489.9,1.8249]
[1754246549712,2.75,3490.0,3489.9,1.523]
[1754246551204,1.0,3490.0,3489.9,1.8249]
[1754246551407,2.009,3490.0,3489.9,1.8249]
[1754246551602,2.75,3490.0,3489.9,1.8249]
[1754246553014,2.3052,3490.0,3489.9,1.8249]
[1754246553615,1.2986,3490.0,3489.9,1.8249]
[1754246553913,1.0,3490.0,3489.9,1.8249]
[1754246554113,1.0,3490.0,3489.9,5.04629521]
[1754246555212,1.0,3490.0,3489.9,1.8249]
[1754246555410,1.2986,3490.0,3489.9,1.8249]
[1754246555611,2.3052,3490.0,3489.9,1.8249]
[1754246555913,2.75,3490.0,3489.9,1.8249]
[1754246556910,2.3052,3490.0,3489.9,1.8249]
[1754246557102,1.0,3490.0,3489.9,1.8249]
[1754246558018,0.709,3490.9,3490.8,0.57289]
[1754246558314,0.709,3490.9,3490.8,2.09589]
[1754246558516,0.709,3490.9,3490.8,2.39779]
[1754246558715,1.3052,3490.9,3490.8,2.39779]
[1754246558908,1.009,3490.9,3490.8,2.39779]
[1754246559712,1.75,3490.9,3490.8,2.09589]
[1754246559911,1.75,3490.9,3490.8,0.57289]
[1754246560507,1.75,3490.9,3490.8,1.29899]
[1754246560707,1.75,3490.9,3490.8,2.39779]
[1754246560708,1.3052,3490.9,3490.8,2.39779]
[1754246561107,1.75,3490.9,3490.8,2.09589]
[1754246561813,0.709,3490.9,3490.7,3.2078]
[1754246562010,0.709,3490.8,3490.4,0.4856]
[1754246562319,1.75,3490.5,3490.4,1.2117]
[1754246562617,1.75,3490.5,3490.4,1.523]
[1754246562813,1.0076,3490.7,3490.6,2.09592]
[1754246563021,0.2986,3490.7,3490.6,5.61921521]
[1754246565814,0.8392,3490.7,3490.6,5.61921521]
[1754246566021,0.2986,3490.7,3490.6,5.61921521]
[1754246566414,3.2078,3491.2,3490.6,5.04629521]
[1754246566622,3.2078,3491.2,3491.0,1.7789]
[1754246566623,1.3784,3491.1,3491.0,1.7789]
[1754246567114,1.8416,3491.1,3491.0,1.4804]
[1754246567513,1.6417,3491.1,3491.0,1.4804]
[1754246567710,1.8416,3491.1,3491.0,1.4804]
[1754246567911,19.629,3491.7,3490.9,0.57286]
[1754246567912,3.2078,3491.7,3490.9,4.65358521]
[1754246568215,1.631,3491.9,3491.8,2.05312]
[1754246568420,1.8416,3491.9,3491.8,2.05312]
[1754246569022,1.8416,3491.9,3491.8,1.4804]
[1754246569423,1.8416,3491.8,3491.7,1.4804]
[1754246571324,0.3249,3491.8,3491.7,1.7789]
[1754246571624,1.0599,3491.8,3491.7,1.7789]
[1754246572025,0.4632,3492.1,3491.5,6.42919521]
[1754246572026,0.5351,3492.0,3491.9,0.7333]
[1754246572220,4.2613,3492.6,3492.5,0.3206]
[1754246572419,4.7245,3492.6,3492.5,0.9853]
[1754246572619,5.0494,3492.6,3492.5,0.7724]
[1754246572825,5.0494,3492.6,3492.5,0.3206]
[1754246574932,0.2106,3492.0,3491.9,3.2078]
[1754246575235,1.8416,3492.0,3491.9,4.96561]
[1754246576038,1.8416,3492.0,3491.9,3.2078]
[1754246576639,0.729,3491.8,3491.7,0.89333]
[1754246576930,0.57264,3492.4,3491.9,0.57271]
[1754246577129,1.8416,3492.0,3491.9,1.60131]
[1754246577633,1.8416,3492.0,3491.9,2.05311]
[1754246578338,0.4105,3492.4,3492.3,0.57263]
[1754246578634,1.8416,3492.4,3492.3,2.05303]
[1754246579137,1.8416,3492.4,3492.3,1.4804]
[1754246580138,0.57255,3492.9,3492.3,1.4804]
[1754246580139,1.631,3492.9,3492.8,1.1851]
[1754246580338,1.8416,3492.9,3492.8,1.4804]
[1754246581340,1.8416,3492.9,3492.8,1.7789]
[1754246581945,1.8416,3492.9,3492.8,1.4804]
[1754246584741,1.3784,3492.9,3492.8,1.7789]
[1754246584943,1.8416,3492.9,3492.8,1.7789]
[1754246585240,0.729,3492.9,3492.7,0.57257]
[1754246585446,1.8416,3492.8,3492.7,1.34497]
[1754246585641,1.8416,3492.8,3492.7,1.55787]
[1754246586040,1.8416,3492.8,3492.7,1.75767]
[1754246586346,1.8416,3492.8,3492.7,2.05297]
[1754246586538,1.8416,3492.8,3492.7,0.3206]
[1754246586944,0.6494,3492.8,3492.7,1.4804]
[1754246587146,0.3249,3492.8,3492.7,1.7789]
[1754246587944,0.86,3492.8,3492.7,1.7789]
[1754246588345,1.0,3493.0,3492.9,1.7789]
[1754246589448,1.3249,3493.0,3492.9,1.7789]
[1754246589645,1.0,3493.0,3492.9,1.4804]
[1754246589951,1.0,3493.0,3492.9,1.7789]
[1754246590250,1.5355,3493.0,3492.9,1.7789]
[1754246590445,2.0599,3493.0,3492.9,1.7789]
[1754246590746,2.8416,3493.0,3492.9,1.4804]
[1754246592050,2.0599,3493.0,3492.9,1.7789]
[1754246592250,1.86,3493.0,3492.9,1.7789]
[1754246592448,3.2078,3493.8,3493.0,1.43133]
[1754246592650,3.2078,3493.8,3493.7,1.5487]
[1754246593149,3.5327,3493.8,3493.7,1.5487]
[1754246593450,4.0678,3493.8,3493.7,1.5487]
[1754246593751,4.2677,3493.8,3493.7,1.5487]
[1754246594457,4.5862,3493.8,3493.7,1.5487]
[1754246594749,1.3784,3493.8,3493.7,1.5487]
[1754246595145,1.8417,3493.8,3493.7,0.5335]
[1754246595347,1.8401,3493.7,3493.6,0.57242]
[1754246595750,1.8401,3493.7,3493.6,0.89402]
[1754246596148,1.8401,3493.7,3493.6,1.09112]
[1754246596355,1.8401,3493.7,3493.6,1.79552]
[1754246596849,1.8401,3493.7,3493.6,1.69582]
[1754246597044,1.8401,3493.7,3493.5,3.78024]
[1754246597244,1.8401,3493.7,3493.4,0.57246]
[1754246597245,0.735,3493.5,3493.4,0.57246]
[1754246597445,1.8401,3493.1,3493.0,3.78033]
[1754246597647,1.8401,3493.1,3493.0,4.90373]
[1754246597846,1.8401,3493.1,3493.0,5.00343]
[1754246598849,1.8401,3493.1,3493.0,3.78033]
[1754246601158,1.8401,3493.1,3493.0,5.00343]
[1754246601449,3.22139521,3493.8,3493.0,5.00343]
[1754246601450,0.6418,3493.8,3493.4,0.67217]
[1754246601656,1.8401,3493.8,3493.7,0.3216]
[1754246602057,0.735,3493.8,3493.4,0.67217]
[1754246602256,1.8401,3493.7,3493.6,0.57243]
[1754246602561,1.8401,3493.4,3493.3,0.9639]
[1754246602750,1.8401,3493.4,3493.3,0.3216]
[1754246603655,1.8401,3493.2,3493.1,0.57251]
[1754246605661,1.8401,3493.2,3493.0,3.78033]
[1754246605954,1.8401,3493.1,3492.9,0.57254]
[1754246606152,0.735,3492.8,3492.5,5.2574086]
[1754246606353,1.8401,3492.7,3492.6,0.5726]
[1754246606856,1.8401,3492.7,3492.6,3.5861086]
[1754246607055,1.8401,3492.7,3492.6,2.6222086]
[1754246607359,1.8401,3492.7,3492.6,0.5726]
[1754246608167,1.8401,3492.7,3492.6,1.0913]
[1754246608359,1.8401,3492.7,3492.6,4.1542086]
[1754246609055,1.8401,3492.7,3492.6,3.8453086]
[1754246609257,1.8401,3492.7,3492.6,1.7957]
[1754246610567,3.78026,3493.5,3492.6,0.5449]
[1754246610766,0.7299,3492.9,3492.8,3.84717887]
[1754246610963,1.8401,3493.4,3493.3,1.09118]
[1754246611164,1.8401,3493.4,3493.3,1.69588]
[1754246612066,1.8401,3493.4,3493.3,1.79558]
[1754246614360,1.8401,3493.4,3493.3,3.84709887]
[1754246615161,1.8401,3493.4,3493.3,1.69588]
[1754246615467,1.8401,3493.4,3493.3,1.53638]
[1754246615866,1.8401,3493.4,3493.3,0.89408]
[1754246616770,1.8401,3493.4,3493.3,3.39079887]
[1754246617072,1.8401,3493.4,3493.3,1.33928]
[1754246617272,1.8401,3493.4,3493.3,3.39079887]
[1754246618374,1.8401,3493.4,3493.3,2.94559887]
[1754246618575,1.8401,3493.4,3493.3,2.05151887]
[1754246619474,0.735,3493.3,3493.2,2.05151887]
[1754246619670,1.8401,3493.3,3493.1,2.05151887]
[1754246619874,1.8401,3493.2,3493.1,2.05151887]
[1754246620073,0.735,3493.2,3493.0,2.05151887]
[1754246620275,1.8401,3493.1,3493.0,2.05151887]
[1754246621171,1.3768,3493.0,3492.9,2.62405887]
[1754246621570,1.8401,3493.0,3492.9,2.62405887]
[1754246622677,1.8401,3493.0,3492.9,0.57254]
[1754246622973,1.8401,3493.0,3492.9,0.89414]
[1754246623183,1.8401,3493.0,3492.9,1.33934]
[1754246623676,1.8401,3493.0,3492.9,1.79664]
[1754246625272,3.2078,3493.4,3493.3,0.3124]
[1754246625572,4.9979,3493.4,3493.3,1.1335]
[1754246625772,4.0714,3493.8,3493.7,0.676]
[1754246625973,3.6195,3493.8,3493.7,1.5377]
[1754246626170,3.2078,3493.8,3493.7,1.5377]
[1754246627778,1.0187,3493.8,3493.7,1.5377]
[1754246627981,1.3382,3493.8,3493.7,1.5377]
[1754246628168,41.222,3494.1,3493.8,0.5724]
[1754246628374,4.2441,3494.3,3494.2,1.2342]
[1754246628576,4.9979,3494.3,3494.2,1.2342]
[1754246628772,4.9979,3494.3,3493.9,1.02988]
[1754246628773,3.939,3494.3,3493.9,1.02988]
[1754246628982,1.7901,3494.1,3494.0,0.9724]
[1754246630383,1.30356,3494.1,3493.7,3.78021]
[1754246630583,1.7901,3493.8,3493.7,3.2078]
[1754246630986,1.7901,3493.8,3493.7,3.5202]